[Event "Icelandic-ch 2021"]
[Site "Kopavogur"]
[Date "2021.04.30"]
[Round "9.5"]
[White "Thorfinnsson, Bragi"]
[Black "Stefansson, Vignir Vatnar"]
[Result "1/2-1/2"]
[ECO "D30"]
[WhiteElo "2432"]
[BlackElo "2327"]
[Annotator "NA"]
[PlyCount "87"]
[EventDate "2021.04.22"]
[EventType "tourn"]
[EventCountry "ISL"]
[SourceTitle "playchess.com"]
[Source "ChessBase"]
[SourceQuality "1"]
[TimeControl "40/5400+30:1800+30"]

1. d4 {[%emt 0:01:50]} Nf6 {[%emt 0:00:00]} 2. c4 {[%emt 0:01:04]} e6 {[%emt 0:00:04]} 3. Nf3 {[%emt 0:00:17]} d5 {[%emt 0:00:07]} 4. Bg5 {[%emt 0:00:20]} Nbd7 {[%emt 0:01:12]} 5. e3 {[%emt 0:02:51]} Bb4+ {[%emt 0:02:32]} 6. Nbd2 {[%emt 0:02:33]} O-O {[%emt 0:00:18]} 7. Rc1 {[%emt 0:01:11]} h6 {[%emt 0:00:34]} 8. Bh4 {[%emt 0:02:58]} c5 {[%emt 0:04:49]} 9. a3 {[%emt 0:07:17]} Bxd2+ {[%emt 0:01:22]} 10. Qxd2 {[%emt 0:01:32]} g5 {[%emt 0:01:50]} 11. Bg3 {[%emt 0:01:47]} Ne4 {[%emt 0:00:05]} 12. Qc2 {[%emt 0:01:07]} Qa5+ {[%emt 0:00:11]} 13. Nd2 {[%emt 0:01:48]} Qxd2+ {[%emt 0:01:01]} 14. Qxd2 {[%emt 0:00:04]} Nxd2 {[%emt 0:00:04]} 15. Kxd2 {[%emt 0:00:04]} cxd4 {[%emt 0:00:48]} 16. exd4 {[%emt 0:03:45]} dxc4 {[%emt 0:00:09]} 17. Bxc4 {[%emt 0:01:24]} Nb6 {[%emt 0:00:41]} 18. h4 {[%emt 0:03:47]} g4 {[%emt 0:14:00]} 19. h5 {[%emt 0:02:07]} Bd7 {[%emt 0:06:49]} 20. Ba2 {[%emt 0:06:30]} Rac8 {[%emt 0:02:31]} 21. Rh4 {[%emt 0:01:59]} f5 {[%emt 0:02:06]} 22. Bc7 {[%emt 0:06:10]} Nd5 {[%emt 0:02:51]} 23. Bxd5 {[%emt 0:02:56]} exd5 {[%emt 0:00:06]} 24. Rhh1 {[%emt 0:02:18]} Rfe8 {[%emt 0:00:14]} 25. f3 {[%emt 0:05:35]} Re6 {[%emt 0:02:34]} 26. Bf4 {[%emt 0:02:47]} Rxc1 {[%emt 0:00:23]} 27. Rxc1 {[%emt 0:00:13]} Rc6 {[%emt 0:00:26]} 28. Rxc6 {[%emt 0:05:12]} Bxc6 {[%emt 0:00:05]} 29. fxg4 {[%emt 0:00:27]} fxg4 {[%emt 0:00:04]} 30. Bxh6 {[%emt 0:00:07]} Be8 {[%emt 0:00:07]} 31. Ke3 {[%emt 0:00:46]} Bxh5 {[%emt 0:00:05]} 32. Kf4 {[%emt 0:00:36]} Kf7 {[%emt 0:04:21]} 33. Ke5 {[%emt 0:00:54]} Ke7 {[%emt 0:00:08]} 34. Kxd5 {[%emt 0:00:38]} Bf7+ {[%emt 0:00:03]} 35. Ke5 {[%emt 0:02:43]} Bb3 {[%emt 0:00:06]} 36. Bf4 {[%emt 0:05:17]} Kd7 {[%emt 0:00:35]} 37. d5 {[%emt 0:01:26]} a5 {[%emt 0:01:19]} 38. Kd4 {[%emt 0:03:12]} a4 {[%emt 0:00:30]} 39. Bb8 {[%emt 0:05:31]} b5 {[%emt 0:00:43]} 40. Kc5 {[%emt 0:00:00]} Bc4 {[%emt 0:00:00]} 41. g3 {[%emt 0:04:08]} Be2 {[%emt 0:00:11]} 42. Bf4 {[%emt 0:00:06]} Bf1 {[%emt 0:00:04]} 43. Kb4 {[%emt 0:00:09]} Bc4 {[%emt 0:00:07]} 44. Be5 {[%emt 0:00:23]} 1/2-1/2